bitfinex-derivatives/quotes_BTCF0:USTF0_20251204
["timestamp","ask_amount","ask_price","bid_price","bid_amount"]
[1764859875016,0.10405,92319.0,92318.0,0.00016239]
[1764859875219,0.46727002,92319.0,92318.0,0.00016239]
[1764859875612,0.46727002,92319.0,92312.0,0.0001305]
[1764859875922,0.36322002,92313.0,92300.0,0.00671817]
[1764859876127,0.3608,92301.0,92300.0,0.06498581]
[1764859876320,0.46485,92301.0,92300.0,0.01777581]
[1764859876921,0.40418391,92301.0,92300.0,0.06498581]
[1764859877113,0.46498391,92301.0,92300.0,0.01777581]
[1764859877315,0.36093391,92301.0,92300.0,0.06498581]
[1764859877621,0.36093391,92301.0,92300.0,0.49119581]
[1764859877622,1e-08,92301.0,92300.0,0.49119581]
[1764859877811,9e-08,92310.0,92309.0,0.1204512]
[1764859878016,9e-08,92310.0,92309.0,0.0108312]
[1764859878215,9e-08,92310.0,92309.0,0.4108312]
[1764859878416,9e-08,92310.0,92309.0,0.0108312]
[1764859878619,0.10647011,92310.0,92309.0,0.0108312]
[1764859878824,0.10659504,92310.0,92300.0,0.5299383]
[1764859879124,0.36322002,92301.0,92300.0,0.6503905]
[1764859879324,0.3608,92301.0,92300.0,0.6413905]
[1764859879726,0.3608,92301.0,92300.0,0.6383905]
[1764859879930,0.46485,92301.0,92238.0,0.09407621]
[1764859880123,0.46485,92301.0,92281.0,0.0108344]
[1764859880124,0.10405,92282.0,92281.0,0.0108344]
[1764859880316,0.10405,92282.0,92259.0,0.3608]
[1764859880317,0.10405,92276.0,92259.0,0.3608]
[1764859880517,0.10405,92270.0,92269.0,0.0108358]
[1764859880915,0.0108354,92273.0,92266.0,0.01108884]
[1764859881117,0.10647002,92267.0,92266.0,0.01108884]
[1764859881735,0.20804,92276.0,92270.0,0.0108357]
[1764859881930,0.00242002,92271.0,92270.0,0.1204557]
[1764859882130,0.0108318,92304.0,92265.0,0.003]
[1764859882131,0.0108282,92335.0,92281.0,0.10962]
[1764859882318,0.0108282,92335.0,92272.0,0.03844]
[1764859882319,0.0108312,92310.0,92279.0,0.0108347]
[1764859882525,0.010832,92303.0,92289.0,0.0108335]
[1764859882725,0.04325,92290.0,92289.0,0.0108335]
[1764859883127,0.04325,92290.0,92283.0,0.0108341]
[1764859883325,0.00242002,92284.0,92280.0,0.00016258]
[1764859883628,0.04567002,92281.0,92280.0,0.00016258]
[1764859883820,0.0108342,92284.0,92280.0,0.00016258]
[1764859884029,0.10647002,92281.0,92280.0,0.00016258]
[1764859884225,0.82807002,92281.0,92280.0,0.50016258]
[1764859884419,0.7216,92281.0,92280.0,0.54737258]
[1764859884622,0.76485,92281.0,92280.0,0.50016258]
[1764859884821,0.82565,92281.0,92280.0,0.50016258]
[1764859885425,0.82565,92281.0,92280.0,0.00016258]
[1764859885931,0.7236,92281.0,92280.0,0.10978258]
[1764859886529,0.7276,92281.0,92280.0,0.04737258]
[1764859886726,0.7286,92281.0,92280.0,0.00016258]
[1764859887230,0.7286,92281.0,92280.0,0.14046258]
[1764859887437,0.0108319,92303.0,92297.0,0.19224]
[1764859887637,0.0108326,92297.0,92291.0,0.0108332]
[1764859887823,0.09949,92298.0,92295.0,0.0108328]
[1764859888027,0.0108321,92302.0,92295.0,0.0108328]
[1764859888028,0.3608,92302.0,92298.0,0.19224]
[1764859888429,4.039e-05,92299.0,92298.0,0.19224]
[1764859888728,0.3608,92313.0,92312.0,0.2030708]
[1764859888933,0.46029,92313.0,92312.0,0.0108308]
[1764859889236,0.55854,92313.0,92302.0,0.0108319]
[1764859889436,0.3608,92303.0,92298.0,0.0108324]
[1764859889736,0.3608,92313.0,92312.0,0.0108308]
[1764859889937,0.3716307,92313.0,92306.0,0.0108315]
[1764859890137,0.00242002,92307.0,92302.0,0.0108319]
[1764859890434,0.19774,92299.0,92298.0,0.00016258]
[1764859890629,0.20016002,92299.0,92298.0,0.00016258]
[1764859890825,0.1103243,92283.0,92277.0,0.0108348]
[1764859891126,0.10191002,92278.0,92276.0,0.0108349]
[1764859891332,0.00242002,92277.0,92276.0,0.0108349]
[1764859891534,0.3608,92294.0,92273.0,0.3716354]
[1764859891838,0.0108322,92301.0,92297.0,0.0108325]
[1764859892142,0.00242002,92298.0,92297.0,0.0108325]
[1764859892328,0.00242002,92298.0,92277.0,0.015]
[1764859892530,0.19774,92288.0,92287.0,0.0108337]
[1764859892732,0.0108337,92287.0,92283.0,0.0108341]
[1764859892938,0.10191002,92284.0,92283.0,0.0108341]
[1764859893236,0.19774,92281.0,92280.0,0.3608]
[1764859893436,0.2085771,92259.0,92256.0,0.0108373]
[1764859893635,0.00242002,92257.0,92226.0,0.02903901]
[1764859893840,0.0108382,92250.0,92227.0,0.9970408]
[1764859894036,0.20571002,92247.0,92246.0,0.01110962]
[1764859894427,0.20583091,92247.0,92246.0,0.00027102]
[1764859894628,0.00254091,92247.0,92241.0,0.0108391]
[1764859894834,0.20329,92238.0,92237.0,0.0108396]
[1764859895137,0.20571002,92238.0,92237.0,0.0108396]
[1764859895332,0.09328,92233.0,92232.0,0.0108401]
[1764859895537,0.09328,92233.0,92226.0,0.3608]
[1764859895538,0.20329,92227.0,92216.0,1.5]
[1764859895733,0.20571002,92227.0,92223.0,0.0108413]
[1764859896043,0.20571002,92227.0,92212.0,0.0108425]
[1764859896044,0.09328,92218.0,92212.0,0.0108425]
[1764859896242,0.09328,92218.0,92201.0,0.00013678]
[1764859896243,0.00242002,92213.0,92201.0,0.00013678]
[1764859896934,0.0108426,92212.0,92201.0,0.00013678]
[1764859897130,0.20329,92202.0,92201.0,0.00013678]
[1764859897331,0.010846,92183.0,92161.0,0.02903901]
[1764859897636,0.010846,92183.0,92142.0,0.07732106]
[1764859897637,0.27576877,92180.0,92167.0,1.5]
[1764859897940,0.27576877,92180.0,92160.0,0.0108486]
[1764859897941,0.0108465,92179.0,92160.0,0.0108486]
[1764859898247,0.0108465,92179.0,92138.0,0.03871868]
[1764859898248,0.20329,92142.0,92138.0,0.0108513]
[1764859898538,0.0001113,92141.0,92126.0,0.0108847]
[1764859898740,0.0001113,92141.0,92140.0,0.20784]
[1764859898931,0.11197114,92229.0,92148.0,0.07169]
[1764859899132,0.0282,92218.0,92169.0,0.07169]
[1764859899331,0.11717589,92253.0,92211.0,0.07169]
[1764859899332,0.06745,92253.0,92211.0,0.07169]
[1764859899543,0.0108396,92238.0,92200.0,0.27576877]
[1764859899837,0.00010882,92237.0,92211.0,0.0108427]
[1764859900037,0.00016267,92233.0,92215.0,0.00016267]
[1764859900344,0.06745,92232.0,92215.0,0.00016267]
[1764859900538,0.20329,92216.0,92215.0,0.00016267]
[1764859900934,0.00014049,92216.0,92215.0,0.21884487]
[1764859901335,0.00256051,92216.0,92215.0,0.00016267]
[1764859901542,0.00014049,92216.0,92215.0,0.09692267]
[1764859901734,0.00256051,92216.0,92215.0,0.00016267]
[1764859902135,0.00014049,92216.0,92215.0,0.20800267]
[1764859902736,0.00216267,92233.0,92215.0,0.20800267]
[1764859902737,0.00216267,92233.0,92216.0,0.0108421]
[1764859902944,0.0108403,92232.0,92215.0,0.01121051]
[1764859903143,0.00016267,92233.0,92215.0,0.52205271]
[1764859903440,0.00016267,92233.0,92215.0,0.70800267]
[1764859903441,0.001,92216.0,92215.0,0.70800267]
[1764859903643,0.001,92216.0,92215.0,0.50016267]
[1764859903845,0.001,92216.0,92215.0,0.70800267]
[1764859904043,0.00342002,92216.0,92215.0,0.70800267]
[1764859904346,0.001,92216.0,92215.0,0.70800267]
[1764859904532,0.0128402,92232.0,92215.0,0.50016267]
[1764859904740,0.0108404,92231.0,92216.0,1.5]
[1764859904934,0.010841,92226.0,92216.0,1.5]
[1764859905340,0.002,92232.0,92216.0,1.5108421]
[1764859905538,0.010843,92209.0,92207.0,0.06922]
[1764859905745,0.00242002,92208.0,92207.0,0.06922]
[1764859906242,0.0108443,92198.0,92189.0,1.5]
[1764859906442,0.00016267,92203.0,92197.0,0.11826]
[1764859906642,0.00016267,92203.0,92202.0,0.11826]
[1764859906839,0.0108448,92194.0,92189.0,1.5]
[1764859907045,0.01326532,92190.0,92188.0,0.06922]
[1764859907241,0.00242002,92189.0,92188.0,0.06922]
[1764859907455,0.0108463,92181.0,92166.0,0.0108479]
[1764859907643,0.00242002,92178.0,92177.0,0.23680309]
[1764859908147,0.0108456,92187.0,92177.0,0.23680309]
[1764859908347,0.00242002,92178.0,92177.0,0.23680309]
[1764859908648,0.00242002,92178.0,92177.0,8.309e-05]
[1764859908832,0.14242002,92178.0,92177.0,8.309e-05]
[1764859909041,0.00242002,92178.0,92177.0,8.309e-05]
[1764859909245,0.45242002,92178.0,92153.0,0.0108494]
[1764859909439,0.27576877,92170.0,92153.0,0.0108494]
[1764859909643,0.3608,92164.0,92151.0,0.0108497]
[1764859909941,0.0108493,92155.0,92150.0,0.43002]
[1764859910140,0.00242002,92151.0,92150.0,0.06922]
[1764859910336,0.0108508,92142.0,92140.0,0.3608]
[1764859910540,0.0108508,92142.0,92133.0,0.0108519]
[1764859910541,0.00242002,92141.0,92133.0,0.0108519]
[1764859910840,0.00242002,92141.0,92140.0,0.23672]
[1764859911142,0.14242002,92141.0,92130.0,0.3608]
[1764859911445,0.36322002,92133.0,92132.0,0.247572]
[1764859911638,0.00242002,92133.0,92132.0,0.23672]
[1764859911835,0.010852,92132.0,92120.0,0.0108533]
[1764859912038,0.00242002,92127.0,92126.0,0.23699137]
[1764859912243,0.3608,92133.0,92132.0,0.23672]
[1764859912546,7.918e-05,92140.0,92139.0,0.23672]
[1764859912739,0.00016276,92150.0,92149.0,0.24757]
[1764859912940,0.00258278,92150.0,92149.0,0.23672]
[1764859913139,0.00016276,92150.0,92149.0,0.23672]
[1764859913340,0.3608,92158.0,92157.0,0.23672]
[1764859913541,0.3608,92169.0,92168.0,0.0108477]
[1764859913742,0.0108472,92173.0,92165.0,0.010848]
[1764859913952,0.00242002,92166.0,92160.0,0.4408686]
[1764859916255,0.0108498,92151.0,92149.0,0.003]
[1764859916548,0.0108493,92155.0,92149.0,0.003]
[1764859916855,0.3608,92162.0,92149.0,0.13211]
[1764859917051,0.0108494,92155.0,92149.0,0.12911]
[1764859917247,0.0108494,92155.0,92146.0,0.36096276]
[1764859917248,0.01085,92149.0,92146.0,0.36096276]
[1764859917454,0.02210002,92147.0,92146.0,0.00016276]
[1764859918454,0.00242002,92147.0,92146.0,0.00016276]
[1764859918854,0.02210002,92147.0,92146.0,0.00016276]
[1764859919054,0.02210002,92147.0,92146.0,0.00416276]
[1764859919253,0.01226002,92147.0,92146.0,0.00416276]
[1764859919457,0.00242002,92147.0,92146.0,0.00416276]
[1764859919656,0.02210002,92147.0,92146.0,0.00416276]
[1764859919856,0.00242002,92147.0,92146.0,0.00416276]
[1764859920257,0.0108526,92127.0,92120.0,0.0108533]
[1764859920451,0.01968,92127.0,92118.0,0.3608]
[1764859920756,0.41179486,92170.0,92131.0,0.06922]
[1764859920952,0.98764,92180.0,92150.0,0.06922]
[1764859921154,0.0108471,92174.0,92167.0,0.0108478]
[1764859921354,0.0108471,92174.0,92150.0,0.06922]
[1764859921355,0.00242002,92168.0,92150.0,0.06922]
[1764859921558,0.0108495,92154.0,92150.0,0.06922]
[1764859921762,0.00242002,92151.0,92150.0,0.06922]
[1764859921961,0.0108504,92146.0,92139.0,0.0108511]
[1764859922163,0.00242002,92140.0,92126.0,0.00227137]
[1764859922349,0.0305326,92127.0,92126.0,0.00227137]
[1764859922543,0.05776794,92184.0,92126.0,0.12053137]
[1764859922754,0.0108512,92139.0,92138.0,0.11826]
[1764859922955,0.00016276,92152.0,92131.0,0.06922]
[1764859923148,0.05258278,92152.0,92131.0,0.06922]
[1764859923459,0.00258278,92152.0,92132.0,0.0108519]
[1764859923756,0.0108523,92130.0,92126.0,0.00127137]
[1764859923952,0.0108518,92134.0,92126.0,0.27576397]
[1764859924253,0.2409897,92151.0,92150.0,0.001]
[1764859924461,0.96500972,92151.0,92150.0,0.001]
[1764859924954,0.23014,92132.0,92131.0,0.09301]
[1764859925156,0.3608,92142.0,92130.0,0.0108521]
[1764859925460,0.0108513,92138.0,92130.0,0.0108521]
[1764859925759,0.3608,92151.0,92150.0,0.26464]
[1764859926052,0.40179486,92190.0,92160.0,0.09301]
[1764859926257,0.54179486,92190.0,92160.0,0.09301]
[1764859926456,0.010848,92167.0,92160.0,0.09301]
[1764859926655,0.010848,92167.0,92150.0,0.501]
[1764859926656,0.0108492,92157.0,92150.0,0.501]
[1764859926854,0.00242002,92151.0,92150.0,0.501]
[1764859927053,0.23319002,92151.0,92150.0,0.501]
[1764859927250,0.37319002,92151.0,92150.0,0.501]
[1764859927454,0.23319002,92151.0,92150.0,0.5]
[1764859927755,0.0108505,92145.0,92144.0,0.11574]
[1764859928157,0.3608,92156.0,92151.0,0.26364]
[1764859928361,0.3608,92156.0,92155.0,0.11574]
[1764859928557,0.3608,92156.0,92155.0,0.26364]
[1764859928752,0.00016276,92160.0,92159.0,0.26364]
[1764859928954,2.76e-06,92160.0,92159.0,0.26364]
[1764859929456,2.76e-06,92160.0,92159.0,0.11574]
[1764859929457,0.00242278,92160.0,92159.0,0.11574]
[1764859929666,0.00242278,92160.0,92150.0,0.001]
[1764859929667,0.0108496,92153.0,92150.0,0.001]
[1764859929852,0.11611002,92151.0,92150.0,0.001]
[1764859930053,0.00242002,92151.0,92150.0,0.35765]
[1764859930455,0.00242002,92151.0,92150.0,0.20875]
[1764859930760,0.2417808,92142.0,92130.0,0.3608]
[1764859931061,0.38420082,92142.0,92130.0,0.3608]
[1764859931560,0.0108526,92127.0,92116.0,0.3608]
[1764859931762,0.0108525,92128.0,92116.0,0.3608]
[1764859932063,0.00242002,92127.0,92121.0,0.0108532]
[1764859932260,0.00242002,92127.0,92117.0,0.0108536]
[1764859932454,0.36096276,92136.0,92135.0,0.26364]
[1764859932965,0.00016276,92136.0,92135.0,0.62444]
[1764859933163,0.3608,92152.0,92151.0,0.2744897]
[1764859933464,0.05776794,92205.0,92184.0,0.0108458]
[1764859933763,0.11985152,92215.0,92169.0,0.09301]
[1764859933764,0.5202,92212.0,92169.0,0.09301]
[1764859933954,0.05,92212.0,92201.0,0.0108438]
[1764859934155,0.04264814,92215.0,92204.0,0.0108434]
[1764859934353,0.2206886,92214.0,92197.0,0.00016276]
[1764859934661,0.04264814,92215.0,92207.0,0.0108431]
[1764859934859,0.00242002,92208.0,92197.0,0.00016276]
[1764859935058,0.0108434,92206.0,92197.0,0.00016276]
[1764859935358,0.2206886,92210.0,92197.0,0.00016276]
[1764859935552,0.2206886,92210.0,92206.0,0.0108432]
[1764859935753,0.006,92215.0,92206.0,0.2744832]
[1764859935950,0.0108423,92214.0,92206.0,0.2744833]
[1764859936152,0.00242002,92207.0,92197.0,0.00016276]
[1764859936364,0.00242002,92198.0,92197.0,0.00016276]
[1764859936661,0.14242002,92198.0,92181.0,0.3608]
[1764859936957,0.010845,92192.0,92178.0,0.0108465]
[1764859937258,0.19956,92204.0,92169.0,0.09301]
[1764859937259,0.2206886,92190.0,92181.0,0.0108462]
[1764859937481,0.3608,92197.0,92185.0,0.0108457]
[1764859937654,0.3608,92197.0,92180.0,0.3608]
[1764859937655,0.0108446,92195.0,92182.0,0.00016267]
[1764859937958,0.2206886,92192.0,92182.0,0.00016267]
[1764859938263,0.23335002,92183.0,92182.0,0.00016267]
[1764859938563,0.00242002,92183.0,92182.0,0.11590267]
[1764859938761,0.0108452,92190.0,92182.0,0.11590267]
[1764859938966,0.0148447,92195.0,92183.0,0.0108459]
[1764859939263,0.0108451,92191.0,92183.0,0.010846]
[1764859939459,0.0108451,92191.0,92183.0,0.26364]
[1764859939460,0.00242002,92184.0,92183.0,0.26364]
[1764859940261,0.010846,92183.0,92182.0,0.00016267]
[1764859940462,0.0108471,92174.0,92164.0,0.0108482]
[1764859940667,0.010849,92157.0,92153.0,0.03871868]
[1764859940862,0.00242002,92154.0,92150.0,0.3608]
[1764859941060,0.00242002,92151.0,92150.0,0.3608]
[1764859941365,0.0108499,92150.0,92140.0,0.0108509]
[1764859941554,0.00242002,92141.0,92140.0,0.0108509]
[1764859941753,0.37181217,92154.0,92134.0,0.0108517]
[1764859941754,0.0108506,92144.0,92134.0,0.0108517]
[1764859941962,0.00242002,92135.0,92134.0,0.0108517]
[1764859942162,0.00242002,92135.0,92131.0,0.09301]
[1764859942461,0.3608,92142.0,92132.0,0.010852]
[1764859942667,0.0108509,92141.0,92131.0,0.09301]
[1764859942866,0.00242002,92132.0,92131.0,0.35665]
[1764859943164,0.0108514,92138.0,92131.0,0.35665]
[1764859943362,0.001,92135.0,92132.0,0.010852]
[1764859943565,0.001,92135.0,92134.0,0.26364]
[1764859943753,0.001,92135.0,92127.0,0.3608]
[1764859943754,0.00342002,92135.0,92127.0,0.3608]
[1764859943954,0.00342002,92135.0,92134.0,0.26364]
[1764859944463,0.001,92135.0,92134.0,0.26364]
[1764859944867,0.3608,92142.0,92141.0,0.11574]
[1764859945370,0.3608,92142.0,92141.0,0.26364]
[1764859945555,0.3608,92142.0,92141.0,0.11574]
[1764859945761,0.0108518,92134.0,92126.0,0.36107137]
[1764859945962,0.01327262,92127.0,92126.0,0.00027137]
[1764859946263,0.14327262,92127.0,92126.0,0.00027137]
[1764859946459,0.01327262,92127.0,92126.0,0.00013097]
[1764859947278,0.00242002,92127.0,92126.0,0.00013097]
[1764859947771,0.00242002,92127.0,92109.0,0.05009567]
[1764859947772,0.36322002,92127.0,92109.0,0.05009567]
[1764859947957,0.0108534,92120.0,92112.0,0.0108543]
[1764859948364,0.01327422,92113.0,92112.0,0.26364]
[1764859948673,0.36196277,92127.0,92113.0,0.0108542]
[1764859949070,0.0108534,92120.0,92119.0,0.11574]
[1764859949373,0.01327342,92120.0,92119.0,0.11574]
[1764859949564,0.01327342,92120.0,92119.0,0.26364]
[1764859949759,0.0108544,92112.0,92109.0,0.05009567]
[1764859949964,0.23335002,92110.0,92109.0,0.05009567]
[1764859950469,0.14242002,92110.0,92109.0,0.05009567]
[1764859950763,0.36322002,92110.0,92109.0,0.05009567]
[1764859950974,0.00242002,92110.0,92109.0,0.05009567]
[1764859951170,0.37335002,92110.0,92109.0,0.05009567]
[1764859951468,0.01327462,92110.0,92109.0,0.05009567]
[1764859951667,0.3608,92117.0,92109.0,0.05009567]
[1764859951668,0.3608,92117.0,92116.0,0.11574]
[1764859951874,0.0108537,92117.0,92116.0,0.3608]
[1764859952073,0.36096277,92127.0,92112.0,0.09301]
[1764859952270,0.0108539,92116.0,92112.0,0.20875]
[1764859952459,0.36096277,92127.0,92126.0,0.11574]
[1764859952664,0.00016277,92127.0,92126.0,0.26364]
[1764859952866,0.00258279,92127.0,92112.0,0.09301]
[1764859953172,0.14258279,92127.0,92112.0,0.09301]
[1764859953368,0.00016277,92127.0,92126.0,0.26364]
[1764859953773,0.00258279,92127.0,92126.0,0.26364]
[1764859953968,0.00016277,92127.0,92126.0,0.26364]
[1764859954569,0.00016277,92127.0,92122.0,0.3608]
[1764859954570,0.0108527,92126.0,92122.0,0.3608]
[1764859954776,0.00016277,92127.0,92126.0,0.28646]
[1764859955076,0.00258279,92127.0,92126.0,0.28646]
[1764859955268,0.00358279,92127.0,92126.0,0.28646]
[1764859955474,0.00116277,92127.0,92126.0,0.28646]
[1764859956374,0.0108538,92117.0,92114.0,0.3608]
[1764859956675,0.0108541,92114.0,92112.0,0.09301]
[1764859956870,0.00242002,92113.0,92112.0,0.09301]
[1764859957076,0.00116277,92127.0,92117.0,0.13418]
[1764859957269,0.00116277,92127.0,92126.0,0.28646]
[1764859959076,0.51424,92139.0,92124.0,0.44431]
[1764859959283,0.00242002,92125.0,92124.0,0.73077]
[1764859959574,0.0108526,92127.0,92126.0,0.15228]
[1764859959777,0.0108526,92127.0,92126.0,0.28646]
[1764859960071,0.3608,92139.0,92124.0,0.08351]
[1764859960072,0.0108522,92130.0,92129.0,0.28646]
[1764859960272,0.01327222,92130.0,92129.0,0.28646]
[1764859960670,0.0108527,92126.0,92124.0,0.08351]
[1764859960875,0.36322002,92125.0,92117.0,0.28662277]
[1764859961179,0.5116528,92125.0,92124.0,0.23579]
[1764859961566,0.5116528,92125.0,92124.0,0.36997]
[1764859961770,0.3716528,92125.0,92124.0,0.36997]
[1764859961969,0.3608,92125.0,92124.0,0.36997]
[1764859962168,0.001,92127.0,92126.0,0.2973127]
[1764859962765,0.001,92130.0,92129.0,0.28646]
[1764859962965,0.002,92130.0,92129.0,0.28646]
[1764859963177,0.01101437,92136.0,92130.0,0.0108522]
[1764859963475,0.01101437,92136.0,92135.0,0.28646]
[1764859963869,0.00016277,92136.0,92135.0,0.28646]
[1764859964173,2.77e-06,92136.0,92135.0,0.28646]
[1764859964380,0.00200277,92136.0,92135.0,0.28646]
[1764859964574,0.00300277,92136.0,92135.0,0.28646]
[1764859966282,0.00100277,92136.0,92135.0,0.28646]
[1764859966484,0.00442279,92136.0,92135.0,0.28646]
[1764859967084,0.00100277,92136.0,92135.0,0.28646]
[1764859967275,0.00442279,92136.0,92135.0,0.28646]
[1764859967486,0.00200277,92136.0,92135.0,0.28646]
[1764859967971,0.3608,92169.0,92146.0,0.0108503]
[1764859968172,0.5116476,92169.0,92168.0,0.26893]
[1764859968376,0.3716476,92169.0,92168.0,0.26893]
[1764859968678,0.0108467,92177.0,92176.0,0.34998]
[1764859969078,0.0108464,92180.0,92179.0,0.13676]
[1764859969280,0.36096277,92186.0,92185.0,0.26893]
[1764859969578,0.0108458,92185.0,92167.0,0.00016277]
[1764859969785,0.0108477,92168.0,92167.0,0.00016277]
[1764859970076,0.1408477,92168.0,92167.0,0.13233277]
[1764859970471,0.001,92169.0,92168.0,0.26893]
[1764859970780,0.14342002,92169.0,92168.0,0.26893]
[1764859970981,0.0108477,92168.0,92167.0,0.00016277]
[1764859971171,0.28244772,92168.0,92167.0,0.00016277]
[1764859971370,0.22105538,92162.0,92152.0,0.26893]
[1764859971578,0.22105538,92162.0,92161.0,0.26893]
[1764859971781,0.001,92168.0,92161.0,0.26893]
[1764859971991,0.0108484,92162.0,92161.0,0.26893]
[1764859972282,0.51406842,92162.0,92161.0,0.26893]
[1764859972971,0.1390295,92153.0,92152.0,0.00016277]
[1764859973175,0.64224952,92153.0,92152.0,0.00016277]
[1764859973687,0.0108517,92134.0,92133.0,0.62973]
[1764859974176,0.0108517,92134.0,92123.0,0.02904631]
[1764859974177,0.0108529,92124.0,92123.0,0.02904631]
[1764859974378,0.0108534,92121.0,92116.0,0.38984631]
[1764859974680,0.00016277,92128.0,92123.0,0.08105]
[1764859974871,0.00016277,92128.0,92127.0,0.26893]
[1764859976081,0.00258279,92128.0,92127.0,0.26893]
[1764859976485,0.00016277,92128.0,92127.0,0.26893]
[1764859976683,0.00258279,92128.0,92127.0,0.26893]
[1764859976977,0.00016277,92128.0,92127.0,0.26893]
[1764859977180,0.00258279,92128.0,92127.0,0.26893]
[1764859977676,0.00016277,92128.0,92127.0,0.26893]
[1764859977880,2.77e-06,92128.0,92127.0,0.26893]
[1764859979379,0.0108502,92147.0,92146.0,0.13217]
[1764859979574,0.0108507,92143.0,92140.0,0.08105]
[1764859979774,0.27779958,92150.0,92149.0,0.26893]
[1764859979984,0.00242002,92150.0,92149.0,0.26893]
[1764859980482,0.3608,92169.0,92168.0,0.26893]
[1764859980681,0.3608,92186.0,92185.0,0.26893]
[1764859980976,0.0108453,92189.0,92188.0,0.13217]
[1764859981177,0.0108453,92189.0,92168.0,0.03889015]
[1764859981178,0.1285,92169.0,92168.0,0.02916761]
[1764859981370,0.14,92189.0,92140.0,0.17779283]
[1764859981371,0.51784,92177.0,92169.0,0.13217]
[1764859981571,0.27779958,92183.0,92181.0,0.26893]
[1764859981572,0.00016277,92182.0,92181.0,0.26893]
[1764859982084,0.27779958,92200.0,92196.0,0.08105]
[1764859982380,0.27779958,92200.0,92199.0,0.26893]
[1764859982581,0.0108434,92206.0,92202.0,0.13676]
[1764859982780,0.00242002,92203.0,92202.0,0.13676]
[1764859982978,0.0108448,92194.0,92189.0,0.3608]
[1764859983168,0.00242002,92190.0,92189.0,0.3608]
[1764859983574,0.27796226,92199.0,92197.0,0.26893]
[1764859983575,0.0108442,92198.0,92197.0,0.26893]
[1764859983780,0.00016268,92199.0,92198.0,0.2534]
[1764859987078,0.27779958,92280.0,92268.0,0.07281]
[1764859987278,0.0108347,92279.0,92274.0,0.12551]
[1764859987579,0.27779958,92284.0,92278.0,0.2575748]
[1764859987784,0.00016258,92286.0,92285.0,0.24674]
[1764859987983,0.0025826,92286.0,92285.0,0.24674]
[1764859989185,0.00016258,92286.0,92285.0,0.24674]
[1764859989386,0.0025826,92286.0,92285.0,0.24674]
[1764859989573,0.0025826,92286.0,92283.0,0.07281]
[1764859989774,0.0025826,92286.0,92273.0,0.0108354]
[1764859989775,0.00242002,92284.0,92273.0,0.0108354]
[1764859989998,0.3608,92285.0,92277.0,0.24674]
[1764859990281,0.0108356,92272.0,92268.0,0.43361]
[1764859990484,0.010835,92277.0,92268.0,0.43361]
[1764859990677,0.0108348,92278.0,92277.0,0.24674]
[1764859990872,0.3608,92285.0,92277.0,0.24674]
[1764859990873,0.0108343,92283.0,92277.0,0.24674]
[1764859991077,0.3608,92285.0,92284.0,0.12551]
[1764859991277,0.5008,92285.0,92268.0,0.43361]
[1764859991481,0.0108357,92271.0,92268.0,0.3608]
[1764859991673,0.0108357,92271.0,92255.0,0.3608]
[1764859991674,0.052566,92268.0,92255.0,0.3608]
[1764859991987,0.14325602,92268.0,92255.0,0.3608]
[1764859992182,0.14325602,92268.0,92250.0,0.083648]
[1764859992587,0.18498602,92268.0,92250.0,0.083648]
[1764859992882,0.22671602,92268.0,92250.0,0.07281]
[1764859993084,0.010838,92251.0,92250.0,0.07281]
[1764859993290,0.010838,92251.0,92240.0,0.12564537]
[1764859993291,0.0108392,92241.0,92240.0,0.12564537]
[1764859993980,0.27796216,92250.0,92240.0,0.12564537]
[1764859994186,0.27796216,92250.0,92240.0,0.00013537]
[1764859994187,0.08588002,92241.0,92240.0,0.00013537]
[1764859994487,0.22588002,92241.0,92240.0,0.00013537]
[1764859994683,0.22588002,92241.0,92240.0,0.00113537]
[1764859994990,0.22588002,92241.0,92240.0,0.00413537]
[1764859995375,0.14242002,92241.0,92240.0,0.00413537]
[1764859995683,0.22588002,92241.0,92240.0,0.00229817]
[1764859996077,0.14242002,92241.0,92240.0,0.00229817]
[1764859996272,0.00242002,92241.0,92240.0,0.24903817]
[1764859996687,0.00251457,92241.0,92240.0,0.24903817]
[1764859996989,0.00016258,92250.0,92249.0,0.24674]
[1764859997679,0.3608,92262.0,92261.0,0.2575768]
[1764859997880,0.5166,92267.0,92266.0,0.12551]
[1764859998081,0.51665062,92267.0,92266.0,0.12551]
[1764859998380,0.65665062,92267.0,92250.0,0.010838]
[1764859998588,0.08398,92250.0,92249.0,0.00116258]
[1764859998787,0.74046,92250.0,92249.0,0.00116258]
[1764859999092,1.14051062,92250.0,92249.0,0.00116258]
[1764859999991,1.05653062,92250.0,92226.0,0.07281]
[1764860000284,0.0108399,92235.0,92234.0,0.12551]
[1764860000486,0.1508399,92235.0,92234.0,0.12551]
[1764860000790,0.0108401,92234.0,92227.0,0.0108408]
[1764860001088,0.3608,92237.0,92236.0,0.2575797]
[1764860001292,0.3608,92237.0,92236.0,0.24674]
[1764860001489,0.08398,92235.0,92234.0,0.004]
[1764860001784,0.08398,92235.0,92221.0,0.00016258]
[1764860001785,0.0948214,92222.0,92221.0,8e-08]
[1764860001977,0.0948244,92196.0,92179.0,0.0108464]
[1764860002182,0.0948244,92196.0,92163.0,0.01252915]
[1764860002183,0.27779958,92189.0,92163.0,0.01252915]
[1764860002385,0.44776,92188.0,92187.0,0.24674]
[1764860002579,0.44776,92188.0,92163.0,0.01252915]
[1764860002580,0.0108466,92178.0,92163.0,0.01252915]
[1764860002781,0.44776,92188.0,92180.0,0.07281]
[1764860002981,0.00016267,92193.0,92192.0,0.12551]
[1764860003182,0.88019516,92193.0,92192.0,0.24674]
[1764860003378,0.00267516,92193.0,92192.0,0.24674]
[1764860003578,0.51943516,92193.0,92192.0,0.24674]
[1764860003783,0.00267516,92193.0,92192.0,0.24674]
[1764860004387,0.00267516,92193.0,92192.0,0.12551]
[1764860004388,0.00367516,92193.0,92192.0,0.12551]
[1764860004582,0.49447516,92193.0,92181.0,0.0108462]
[1764860004787,0.0108453,92189.0,92181.0,0.0108462]
[1764860005003,0.88281514,92193.0,92180.0,0.07281]
[1764860005195,0.88281514,92193.0,92188.0,0.0108453]
[1764860005396,0.00242002,92189.0,92188.0,0.24674]
[1764860006201,0.0108458,92185.0,92180.0,0.07281]
[1764860006388,0.3608,92192.0,92180.0,0.24674]
[1764860006389,0.00242002,92181.0,92180.0,0.24674]
[1764860006583,0.51894002,92181.0,92180.0,0.24674]
[1764860006793,0.51652,92181.0,92180.0,0.24674]
[1764860007093,0.006,92189.0,92188.0,0.3303954]
[1764860007286,0.00842002,92189.0,92188.0,0.3303954]